fUSD/lending_fUSD_20260213
["ID","MTS","AMOUNT","RATE_DAILY","PERIOD"]
[405301123,1770970247742,-45698.0920966,0.000179,2]
[405301124,1770970247752,-15361.95935846,0.000179,2]
[405301125,1770970247761,-2768.40881957,0.000179,2]
[405301126,1770970247771,-500.0,0.000179,2]
[405301127,1770970247781,-500.0,0.000179,2]
[405301128,1770970247790,-500.0,0.000179,2]
[405301129,1770970247800,-500.0,0.000179,2]
[405301130,1770970247809,-500.0,0.000179,2]
[405301131,1770970247819,-500.0,0.000179,2]
[405301132,1770970247829,-500.0,0.000179,2]
[405301133,1770970247838,-500.0,0.000179,2]
[405301134,1770970247847,-500.0,0.000179,2]
[405301135,1770970247857,-500.0,0.000179,2]
[405301136,1770970247866,-500.0,0.000179,2]
[405301137,1770970247876,-500.0,0.000179,2]
[405301138,1770970247886,-500.0,0.000179,2]
[405301139,1770970247895,-500.0,0.000179,2]
[405301140,1770970247906,-500.0,0.000179,2]
[405301141,1770970247917,-500.0,0.000179,2]
[405301142,1770970247927,-500.0,0.000179,2]
[405301143,1770970247936,-500.0,0.000179,2]
[405301144,1770970247947,-500.0,0.000179,2]
[405301145,1770970247957,-500.0,0.000179,2]
[405301146,1770970247967,-500.0,0.000179,2]
[405301147,1770970247977,-500.0,0.000179,2]
[405301148,1770970247987,-500.0,0.000179,2]
[405301149,1770970247999,-500.0,0.000179,2]
[405301150,1770970248008,-500.0,0.000179,2]
[405301151,1770970248019,-500.0,0.000179,2]
[405301152,1770970248029,-500.0,0.000179,2]
[405301153,1770970248039,-500.0,0.00017918,2]
[405301154,1770970248049,-500.49095607,0.00017959,3]
[405301155,1770970248059,-500.0,0.00017972,2]
[405301156,1770970248070,-874.96955465,0.0001799,2]
[405301157,1770970248080,-722.32,0.00017998,2]
[405301158,1770970248090,-591.31,0.00017998,2]
[405301159,1770970248101,-1197.3,0.00017998,2]
[405301160,1770970248111,-1137.19,0.00017998,2]
[405301161,1770970248121,-1410.82,0.00017998,2]
[405301162,1770970248131,-891.17,0.00017998,2]
[405301163,1770970248141,-500.0,0.00017998,2]
[405301164,1770970248151,-500.0,0.00017998,2]
[405301165,1770970248162,-691.13,0.00017998,2]
[405301166,1770970248172,-500.0,0.00017998,2]
[405301167,1770970248183,-500.0,0.00017998,2]
[405301168,1770970248194,-500.0,0.00017998,2]
[405301169,1770970248204,-529.45,0.00017998,2]
[405301170,1770970248215,-1438.79,0.00017998,2]
[405301171,1770970248226,-500.0,0.00017998,2]
[405301172,1770970248236,-308.25621576,0.00017998,2]
[405301173,1770970248246,-1011.76198068,0.00017999,2]
[405301174,1770970248259,-1036.80169814,0.00017999,5]
[405301175,1770970248269,-1036.80169814,0.00017999,5]
[405301176,1770970248279,-1036.80169814,0.00017999,5]
[405301177,1770970248289,-1036.80169812,0.00017999,5]
[405301178,1770970248299,-1073.46845351,0.00017999,5]
[405301179,1770970248309,-581.0,0.00017999,2]
[405301180,1770970248319,-581.0,0.00017999,2]
[405301181,1770970248329,-581.0,0.00017999,2]
[405301182,1770970248339,-581.0,0.00017999,2]
[405301183,1770970248349,-581.0,0.00017999,2]
[405301184,1770970248359,-581.0,0.00017999,2]
[405301185,1770970248369,-581.0,0.00017999,2]
[405301186,1770970248379,-581.0,0.00017999,2]
[405301187,1770970248389,-581.0,0.00017999,2]
[405301188,1770970248399,-581.0,0.00017999,2]
[405301189,1770970248408,-581.0,0.00017999,2]
[405301190,1770970248419,-581.0,0.00017999,2]
[405301191,1770970248429,-581.0,0.00017999,2]
[405301192,1770970248439,-581.0,0.00017999,2]
[405301193,1770970248611,-581.07213972,0.00017999,2]
[405301194,1770970248622,-500.0,0.00017999,2]
[405301195,1770970248632,-500.0,0.00017999,2]
[405301196,1770970248641,-500.0,0.00017999,2]
[405301197,1770970248651,-500.0,0.00017999,2]
[405301198,1770970248660,-500.0,0.00017999,2]
[405301199,1770970248670,-315.87882507,0.00017999,2]
[405301200,1770970248679,-866.73,0.00017999,2]
[405301201,1770970248688,-866.73,0.00017999,2]
[405301202,1770970248698,-866.73,0.00017999,2]
[405301203,1770970248707,-866.73,0.00017999,2]
[405301204,1770970248717,-866.73,0.00017999,2]
[405301205,1770970248730,-866.73,0.00017999,2]
[405301206,1770970248740,-866.73,0.00017999,2]
[405301207,1770970248750,-866.73,0.00017999,2]
[405301208,1770970248759,-866.73,0.00017999,2]
[405301209,1770970248768,-866.73,0.00017999,2]
[405301210,1770970248778,-866.73,0.00017999,2]
[405301211,1770970248787,-866.73,0.00017999,2]
[405301212,1770970248797,-866.73,0.00017999,2]
[405301213,1770970248806,-866.73,0.00017999,2]
[405301214,1770970248815,-866.78276592,0.00017999,2]
[405301215,1770970248825,-500.0,0.00017999,2]
[405301216,1770970248835,-500.0,0.00017999,2]
[405301217,1770970248846,-500.0,0.00017999,2]
[405301218,1770970248856,-500.0,0.00017999,2]
[405301219,1770970248865,-500.0,0.00017999,2]
[405301220,1770970248875,-500.0,0.00017999,2]
[405301221,1770970248886,-500.0,0.00017999,2]
[405301222,1770970248895,-500.0,0.00017999,2]
[405301223,1770970248908,-500.0,0.00017999,2]
[405301224,1770970248921,-500.0,0.00017999,2]
[405301225,1770970248930,-500.0,0.00017999,2]
[405301226,1770970248939,-500.0,0.00017999,2]
[405301227,1770970248951,-500.0,0.00017999,2]
[405301228,1770970248961,-559.38615752,0.00017999,2]
[405301229,1770970248971,-722.32,0.00017999,2]
[405301230,1770970248983,-722.32,0.00017999,2]
[405301231,1770970248995,-722.32,0.00017999,2]
[405301232,1770970249007,-722.32,0.00017999,2]
[405301233,1770970249016,-722.32,0.00017999,2]
[405301234,1770970249026,-722.32,0.00017999,2]
[405301235,1770970249035,-722.45486272,0.00017999,2]
[405301236,1770970249045,-591.31,0.00017999,2]
[405301237,1770970249055,-591.31,0.00017999,2]
[405301238,1770970249064,-591.31,0.00017999,2]
[405301239,1770970249073,-591.31,0.00017999,2]
[405301240,1770970249083,-591.31,0.00017999,2]
[405301241,1770970249093,-591.31,0.00017999,2]
[405301242,1770970249103,-591.40700258,0.00017999,2]
[405301243,1770970249114,-1197.3,0.00017999,2]
[405301244,1770970249124,-1197.3,0.00017999,2]
[405301245,1770970249135,-1197.3,0.00017999,2]
[405301246,1770970249146,-1197.3,0.00017999,2]
[405301247,1770970249157,-1197.3,0.00017999,2]
[405301248,1770970249166,-1197.3,0.00017999,2]
[405301249,1770970249176,-1197.32571045,0.00017999,2]
[405301250,1770970249185,-1137.19,0.00017999,2]
[405301251,1770970249195,-1137.19,0.00017999,2]
[405301252,1770970249205,-1137.19,0.00017999,2]
[405301253,1770970249214,-1137.19,0.00017999,2]
[405301254,1770970249224,-1137.19,0.00017999,2]
[405301255,1770970249234,-1137.19,0.00017999,2]
[405301256,1770970249244,-1137.37012897,0.00017999,2]
[405301257,1770970249254,-1410.82,0.00017999,2]
[405301258,1770970249264,-1410.82,0.00017999,2]
[405301259,1770970249273,-1410.82,0.00017999,2]
[405301260,1770970249283,-1410.82,0.00017999,2]
[405301261,1770970249293,-1410.82,0.00017999,2]
[405301262,1770970249303,-1410.82,0.00017999,2]
[405301263,1770970249312,-1411.00509654,0.00017999,2]
[405301264,1770970249322,-891.17,0.00017999,2]
[405301265,1770970249332,-891.17,0.00017999,2]
[405301266,1770970249342,-891.17,0.00017999,2]
[405301267,1770970249351,-891.17,0.00017999,2]
[405301268,1770970249361,-891.17,0.00017999,2]
[405301269,1770970249371,-891.17,0.00017999,2]
[405301270,1770970249380,-891.30830007,0.00017999,2]
[405301271,1770970249390,-500.0,0.00017999,2]
[405301272,1770970249400,-500.0,0.00017999,2]
[405301273,1770970249409,-500.0,0.00017999,2]
[405301274,1770970249418,-500.0,0.00017999,2]
[405301275,1770970249427,-313.3815855,0.00017999,2]
[405301276,1770970249437,-500.0,0.00017999,2]
[405301277,1770970249447,-500.0,0.00017999,2]
[405301278,1770970249457,-500.0,0.00017999,2]
[405301279,1770970249466,-500.0,0.00017999,2]
[405301280,1770970249475,-190.05419818,0.00017999,2]
[405301281,1770970249484,-691.13,0.00017999,2]
[405301282,1770970249493,-691.13,0.00017999,2]
[405301283,1770970249505,-691.13,0.00017999,2]
[405301284,1770970249515,-691.13,0.00017999,2]
[405301285,1770970249525,-691.13,0.00017999,2]
[405301286,1770970249534,-691.13,0.00017999,2]
[405301287,1770970249543,-691.31442771,0.00017999,2]
[405301288,1770970249552,-500.0,0.00017999,2]
[405301289,1770970249562,-500.0,0.00017999,2]
[405301290,1770970249571,-500.0,0.00017999,2]
[405301291,1770970249580,-500.0,0.00017999,2]
[405301292,1770970249590,-500.0,0.00017999,2]
[405301293,1770970249599,-500.0,0.00017999,2]
[405301294,1770970249608,-244.9557617,0.00017999,2]
[405301295,1770970249618,-191.66731724,0.00017999,2]
[405301296,1770970249627,-500.0,0.00017999,2]
[405301297,1770970249637,-500.0,0.00017999,2]
[405301298,1770970249649,-500.0,0.00017999,2]
[405301299,1770970249658,-500.0,0.00017999,2]
[405301300,1770970249668,-495.54112114,0.00017999,2]
[405301301,1770970249677,-529.45,0.00017999,2]
[405301302,1770970249687,-529.45,0.00017999,2]
[405301303,1770970249697,-529.45,0.00017999,2]
[405301304,1770970249707,-529.45,0.00017999,2]
[405301305,1770970249716,-529.45,0.00017999,2]
[405301306,1770970249726,-529.45,0.00017999,2]
[405301307,1770970249735,-529.67601554,0.00017999,2]
[405301308,1770970249744,-1438.79,0.00017999,2]
[405301309,1770970249754,-1438.79,0.00017999,2]
[405301310,1770970249763,-1438.79,0.00017999,2]
[405301311,1770970249772,-1438.79,0.00017999,2]
[405301312,1770970249781,-1438.79,0.00017999,2]
[405301313,1770970249792,-1438.79,0.00017999,2]
[405301314,1770970249802,-1438.88770196,0.00017999,2]
[405301315,1770970249813,-500.0,0.00017999,2]
[405301316,1770970249823,-500.0,0.00017999,2]
[405301317,1770970249833,-500.0,0.00017999,2]
[405301318,1770970249842,-500.0,0.00017999,2]
[405301319,1770970249852,-459.69931234,0.00017999,2]
[405301320,1770970249861,-2066191.01807673,0.00018,2]
[405301321,1770970249871,-1652210.16891046,0.00018,2]
[405301322,1770970250033,-1172.96774003,0.00018,2]
[405301323,1770970250045,-873.39,0.00018,2]
[405301324,1770970250063,-517851.29493554,0.00018,2]
[405301325,1770970250074,-919.38,0.00018,2]
[405301326,1770970250519,-152.80899539,7.146e-05,2]
[405301327,1770970250529,-150.0,0.00010701,2]
[405301328,1770970250539,-500.0,0.00010701,2]
[405301329,1770970250549,-202.17412439,0.00010756,2]
[405301330,1770970250558,-500.0,0.00010756,2]
[405301331,1770970250568,-500.0,0.00010811,2]
[405301332,1770970250578,-500.0,0.00010865,2]
[405301333,1770970250587,-500.0,0.0001092,2]
[405301334,1770970250596,-500.0,0.00010975,2]
[405301335,1770970250606,-418.979,0.00011021,2]
[405301336,1770970250615,-500.0,0.0001103,2]
[405301337,1770970250624,-500.0,0.00013673,2]
[405301338,1770970250634,-412.0,0.00014021,2]
[405301339,1770970250643,-1000.0,0.00014221,2]
[405301340,1770970250653,-1500.0,0.00014768,2]
[405301341,1770970250663,-2000.0,0.00015316,2]
[405301342,1770970250672,-2625.95931684,0.00015864,2]
[405301343,1770970250684,-412.0,0.00017021,2]
[405301344,1770970250693,-590.083046,0.00017808,2]
[405301345,1770970250704,-590.083046,0.00017808,2]
[405301346,1770970250716,-590.083046,0.00017808,2]
[405301347,1770970250725,-590.083046,0.00017808,2]
[405301348,1770970250734,-590.083046,0.00017808,2]
[405301349,1770970250743,-590.083046,0.00017808,2]
[405301350,1770970250754,-590.083046,0.00017808,2]
[405301351,1770970250763,-590.083046,0.00017808,2]
[405301352,1770970250772,-590.083046,0.00017808,2]
[405301353,1770970250781,-590.083046,0.00017808,2]
[405301354,1770970250790,-590.083046,0.00017808,2]
[405301355,1770970250800,-590.083046,0.00017808,2]
[405301356,1770970250855,-590.083046,0.00017808,2]
[405301357,1770970250864,-590.083046,0.00017808,2]
[405301358,1770970250874,-590.083046,0.00017808,2]
[405301359,1770970250885,-590.083046,0.00017808,2]
[405301360,1770970250894,-590.083046,0.00017808,2]
[405301361,1770970250904,-47450.05554353,0.00018,2]
[405301362,1770970250920,-175109.42983604,0.00018,2]
[405301363,1770970250930,-2203577.860185,0.00018,2]
[405301364,1770970250939,-34777.23406205,0.00018,2]
[405301365,1770970250948,-1503093.50914035,0.00018,2]
[405301366,1770970250958,-242.7750795,0.00018,2]
[405301367,1770970250967,-1558026.17932776,0.00018,2]
[405301368,1770970250977,-119095.70900364,0.00018,2]
[405301369,1770970250987,-200.0,0.00018,2]
[405301370,1770970250996,-150.0,0.00018,2]
[405301371,1770970251005,-1668.58678493,0.00018,2]
[405301372,1770970251014,-2000.0,0.00018,2]
[405301373,1770970251023,-826.39687965,0.00018,2]
[405301374,1770970251032,-520.30185575,0.00018,2]
[405301375,1770970251043,-151.0,0.00018,2]
[405301376,1770970251052,-151.0,0.00018,2]
[405301377,1770970251063,-151.0,0.00018,2]
[405301378,1770970251072,-151.0,0.00018,2]
[405301379,1770970251081,-151.0,0.00018,2]
[405301380,1770970251092,-151.0,0.00018,2]
[405301381,1770970251104,-151.0,0.00018,2]
[405301382,1770970251114,-282.843245,0.00018,2]
[405301383,1770970251124,-500.0,0.00018027,2]
[405301384,1770970251136,-451.0,0.00018032,2]
[405301385,1770970251145,-500.0,0.00018082,2]
[405301386,1770970251155,-165.62,0.00018124,2]
[405301387,1770970251165,-175.92,0.00018129,2]
[405301388,1770970251174,-500.0,0.00018137,2]
[405301389,1770970251183,-200.0,0.0001818,2]
[405301390,1770970251192,-165.05,0.00018186,2]
[405301391,1770970251202,-481.89542729,0.00018186,2]
[405301392,1770970251211,-500.0,0.00018192,2]
[405301393,1770970251220,-162.03,0.00018221,2]
[405301394,1770970251229,-500.0,0.00018246,2]
[405301395,1770970251238,-165.62,0.00018249,2]
[405301396,1770970251247,-165.05,0.0001829,2]
[405301397,1770970251257,-500.0,0.00018301,2]
[405301398,1770970251267,-200.0,0.00018319,2]
[405301399,1770970251276,-500.0,0.00018356,2]
[405301400,1770970251285,-162.03,0.00018361,2]
[405301401,1770970251295,-200.0,0.00018362,2]
[405301402,1770970251304,-1504.4856347,0.00018364,2]
[405301403,1770970251314,-460.3517219,0.00018364,2]
[405301404,1770970251323,-1787.66016397,0.00018364,2]
[405301405,1770970251332,-165.05,0.00018394,2]
[405301406,1770970251341,-500.0,0.00018411,2]
[405301407,1770970251350,-500.0,0.00018466,2]
[405301408,1770970251360,-350.0,0.00018468,2]
[405301409,1770970251369,-160.10510946,0.00018498,2]
[405301410,1770970251379,-350.0,0.00018504,2]
[405301411,1770970251391,-350.0,0.00018516,2]
[405301412,1770970251400,-500.0,0.0001852,2]
[405301413,1770970251410,-200.0,0.00018545,2]
[405301414,1770970251420,-350.0,0.00018555,2]
[405301415,1770970251430,-500.0,0.00018575,2]
[405301416,1770970251439,-481.89542729,0.0001863,2]
[405301417,1770970251448,-500.0,0.0001863,2]
[405301418,1770970251459,-150.0,0.0001863,2]
[405301419,1770970251468,-306.3167255,0.00018636,2]
[405301420,1770970251477,-500.0,0.00018685,2]
[405301421,1770970251487,-350.0,0.000187,2]
[405301422,1770970251496,-200.0,0.00018731,2]
[405301423,1770970251506,-500.0,0.0001874,2]
[405301424,1770970251515,-500.0,0.00018794,2]
[405301425,1770970251524,-285.29097381,0.00018849,2]
[405301426,1770970251534,-801.45328236,0.00018904,2]
[405301427,1770970251543,-4600.92113012,0.00019,2]
[405301428,1770970251553,-264.00565136,0.00019,2]
[405301429,1770970251563,-350.0,0.00019,2]
[405301430,1770970251572,-503.0,0.00019,2]
[405301431,1770970251581,-481.89542729,0.00019073,2]
[405301432,1770970251590,-350.0,0.00019094,2]
[405301433,1770970251600,-500.0,0.00019178,2]
[405301434,1770970251608,-151.0,0.00019178,2]
[405301435,1770970251618,-151.0,0.00019178,2]
[405301436,1770970251627,-152.331167,0.00019178,2]
[405301437,1770970251636,-151.0,0.00019178,2]
[405301438,1770970251646,-150.0,0.00019178,2]
[405301439,1770970251655,-250.0,0.00019178,2]
[405301440,1770970251665,-150.0,0.00019178,2]
[405301441,1770970251674,-350.0,0.00019209,2]
[405301442,1770970251683,-500.0,0.00019233,2]
[405301443,1770970251693,-350.0,0.00019278,2]
[405301444,1770970251702,-500.33745855,0.00019288,2]
[405301445,1770970251711,-350.0,0.00019406,2]
[405301446,1770970251720,-481.89542729,0.00019517,2]
[405301447,1770970251729,-199.17,0.00019658,2]
[405301448,1770970251738,-160.0,0.000197,7]
[405301449,1770970251747,-500.0,0.00019726,2]
[405301450,1770970251757,-250.0,0.00019726,2]
[405301451,1770970251766,-350.0,0.00019726,2]
[405301452,1770970251775,-250.0,0.00019726,2]
[405301453,1770970251784,-500.0,0.00019781,2]
[405301454,1770970251793,-500.0,0.00019836,2]
[405301455,1770970251802,-500.0,0.0001989,2]
[405301456,1770970251812,-4933.790515,0.000199,3]
[405301457,1770970251821,-632.80663538,0.00019945,2]
[405301458,1770970251830,-758.98794208,0.0001995,15]
[405301459,1770970251839,-152.97,0.0002,7]
[405301460,1770970251848,-160.0,0.0002,3]
[405301461,1770970251857,-5968.0,0.00020021,2]
[405301462,1770970251866,-2450.0,0.00020021,2]
[405301463,1770970251875,-412.0,0.00020021,2]
[405301464,1770970251885,-335.56301619,0.00020274,2]
[405301465,1770970251894,-450.0,0.00020274,2]
[405301466,1770970251904,-350.0,0.00020274,2]
[405301467,1770970251917,-150.0,0.00020394,2]
[405301468,1770970251925,-1337.0,0.00020394,2]
[405301469,1770970251934,-3488.0,0.00020394,2]
[405301470,1770970251944,-1288.0,0.00020394,2]
[405301471,1770970251954,-1274.0,0.00020394,2]
[405301472,1770970251963,-918.0,0.00020394,2]
[405301473,1770970251973,-1208.0,0.00020394,2]
[405301474,1770970251986,-151.66407962,0.000204,30]
[405301475,1770970251996,-21574.56,0.00020548,2]
[405301476,1770970252007,-151.0,0.00020548,2]
[405301477,1770970252015,-160.10510946,0.00020554,2]
[405301478,1770970252024,-257.55811756,0.00020603,2]
[405301479,1770970252034,-550.0,0.00020822,2]
[405301480,1770970252044,-450.0,0.00020822,2]
[405301481,1770970252054,-2000.0,0.00021,2]
[405301482,1770970252063,-10296.58306677,0.00021,2]
[405301483,1770970252072,-503.92174178,0.00021,10]
[405301484,1770970252082,-400.0,0.00021,2]
[405301485,1770970252092,-12546.97,0.00021068,2]
[405301486,1770970252102,-6394.1,0.0002137,2]
[405301487,1770970252112,-203.02698614,0.0002137,2]
[405301488,1770970252122,-550.0,0.0002137,2]
[405301489,1770970252134,-2000.0,0.00021917,2]
[405301490,1770970252144,-5000.0,0.00021918,2]
[405301491,1770970252153,-151.0,0.00021918,2]
[405301492,1770970252162,-248.464248,0.00021918,2]
[405301493,1770970252172,-552.06741177,0.00021918,2]
[405301494,1770970252183,-500.0,0.00021918,2]
[405301495,1770970252191,-204.72,0.00021923,2]
[405301496,1770970252200,-500.0,0.00021973,2]
[405301497,1770970252209,-541.304925,0.00021999,2]
[405301498,1770970252218,-391.60987072,0.00022,2]
[405301499,1770970252227,-198.50593303,0.00022,2]
[405301500,1770970252237,-337.84879333,0.00022,120]
[405301501,1770970252246,-480.01587484,0.00022,120]
[405301502,1770970252256,-500.0,0.00022028,2]
[405301503,1770970252266,-500.0,0.00022082,2]
[405301504,1770970252275,-500.0,0.00022137,2]
[405301505,1770970252285,-500.0,0.00022192,2]
[405301506,1770970252294,-1011.41,0.000222,7]
[405301507,1770970252304,-500.0,0.00022247,2]
[405301508,1770970252314,-500.0,0.00022302,2]
[405301509,1770970252324,-390.83009148,0.00022356,2]
[405301510,1770970252333,-10397.79,0.00022466,2]
[405301511,1770970252343,-500.0,0.00022575,2]
[405301512,1770970252352,-199.17,0.00022603,2]
[405301513,1770970252361,-160.10510946,0.00022609,2]
[405301514,1770970252371,-198.50593303,0.00022649,17]
[405301515,1770970252381,-2310.39780046,0.00023,2]
[405301516,1770970252390,-458.92,0.00023,14]
[405301517,1770970252400,-450.0,0.00023,2]
[405301518,1770970252410,-160.0,0.00023,2]
[405301519,1770970252419,-160.0,0.00023,3]
[405301520,1770970252429,-154.0,0.00023,7]
[405301521,1770970252439,-5968.0,0.00023021,2]
[405301522,1770970252449,-2450.0,0.00023021,2]
[405301523,1770970252459,-412.0,0.00023021,2]
[405301524,1770970252469,-154.0,0.00023288,7]
[405301525,1770970252479,-198.50593303,0.00023298,32]
[405301526,1770970252488,-1337.0,0.00023394,2]
[405301527,1770970252499,-3488.0,0.00023394,2]
[405301528,1770970252509,-1288.0,0.00023394,2]
[405301529,1770970252518,-1274.0,0.00023394,2]
[405301530,1770970252528,-918.0,0.00023394,2]
[405301531,1770970252539,-1207.361,0.00023394,2]
[405301532,1770970252549,-6500.0,0.00023463,7]
[405301533,1770970252559,-250.0,0.0002372,35]
[405301534,1770970252570,-250.0,0.0002372,35]
[405301535,1770970252580,-251.0,0.0002372,35]
[405301536,1770970252591,-198.50593303,0.00023947,48]
[405301537,1770970252601,-10010.19955284,0.00024,2]
[405301538,1770970252612,-160.0,0.00024,7]
[405301539,1770970252623,-154.0,0.00024164,7]
[405301540,1770970252633,-250.0,0.00024224,35]
[405301541,1770970252642,-201.0,0.00024224,35]
[405301542,1770970252651,-198.50593303,0.00024595,63]
[405301543,1770970252661,-2000.0,0.00024657,12]
[405301544,1770970252670,-1000.0,0.00024658,2]
[405301545,1770970252680,-1254.26,0.00024658,2]
[405301546,1770970252689,-153.096268,0.00024658,2]
[405301547,1770970252700,-150.0,0.00024658,2]
[405301548,1770970252709,-160.10510947,0.00024665,2]
[405301549,1770970252719,-300.0,0.00024728,35]
[405301550,1770970252729,-150.0,0.00025,2]
[405301551,1770970252739,-150.0,0.00025,17]
[405301552,1770970252749,-206.78823258,0.00025,7]
[405301553,1770970252760,-500.0,0.00025,2]
[405301554,1770970252770,-198.50593303,0.00025244,79]
[405301555,1770970252779,-158.0,0.00025373,7]
[405301556,1770970252790,-199.17,0.00025548,2]
[405301557,1770970252799,-1011.41,0.000257,7]
[405301558,1770970252809,-198.50593301,0.00025769,120]
[405301559,1770970252819,-150.0,0.0002589,2]
[405301560,1770970252829,-198.50593303,0.00025893,94]
[405301561,1770970252840,-150.0,0.00026,20]
[405301562,1770970252851,-5091.035,0.00026021,2]
[405301563,1770970252864,-2450.0,0.00026021,2]
[405301564,1770970252875,-728.0,0.00026274,10]
[405301565,1770970252885,-1337.0,0.00026394,2]
[405301566,1770970252896,-3488.0,0.00026394,2]
[405301567,1770970252908,-918.0,0.00026394,2]
[405301568,1770970252922,-783.27192446,0.00026823,2]
[405301569,1770970252931,-256.0,0.00027,23]
[405301570,1770970252942,-550.0,0.00027,2]
[405301571,1770970252952,-150.0,0.00027064,2]
[405301572,1770970252961,-3692.55,0.00027123,2]
[405301573,1770970252971,-150.0,0.00027185,2]
[405301574,1770970252981,-150.0,0.00027369,2]
[405301575,1770970252992,-335.51534635,0.0002737,2]
[405301576,1770970253002,-2006.79775427,0.00027397,22]
[405301577,1770970253011,-160.48734455,0.00027397,2]
[405301578,1770970253021,-518.48802897,0.00027397,120]
[405301579,1770970253030,-1254.26,0.00027397,2]
[405301580,1770970253040,-1116.28,0.00027397,30]
[405301581,1770970253050,-500.0,0.00027397,20]
[405301582,1770970253059,-300.0,0.00027397,2]
[405301583,1770970253069,-151.0,0.00027397,2]
[405301584,1770970253079,-151.0,0.00027397,2]
[405301585,1770970253089,-151.0,0.00027397,2]
[405301586,1770970253099,-151.0,0.00027397,2]
[405301587,1770970253108,-151.0,0.00027397,2]
[405301588,1770970253118,-151.0,0.00027397,2]
[405301589,1770970253128,-151.0,0.00027397,2]
[405301590,1770970253137,-151.0,0.00027397,2]
[405301591,1770970253147,-236.771232,0.00027397,2]
[405301592,1770970253157,-364.466906,0.00027397,2]
[405301593,1770970253167,-364.466906,0.00027397,2]
[405301594,1770970253177,-364.466906,0.00027397,2]
[405301595,1770970253186,-364.466906,0.00027397,2]
[405301596,1770970253196,-364.466906,0.00027397,2]
[405301597,1770970253205,-364.466906,0.00027397,2]
[405301598,1770970253215,-364.466906,0.00027397,2]
[405301599,1770970253224,-364.466906,0.00027397,2]
[405301600,1770970253234,-364.466906,0.00027397,2]
[405301601,1770970253244,-364.466906,0.00027397,2]
[405301602,1770970253254,-364.466906,0.00027397,2]
[405301603,1770970253264,-364.466906,0.00027397,2]
[405301604,1770970253274,-364.466906,0.00027397,2]
[405301605,1770970253283,-364.466906,0.00027397,2]
[405301606,1770970253293,-364.466906,0.00027397,2]
[405301607,1770970253303,-364.466906,0.00027397,2]
[405301608,1770970253313,-364.466906,0.00027397,2]
[405301609,1770970253323,-364.466906,0.00027397,2]
[405301610,1770970253333,-364.466906,0.00027397,2]
[405301611,1770970253343,-364.466909,0.00027397,2]
[405301612,1770970253353,-211.64486085,0.00027397,4]
[405301613,1770970253363,-150.0,0.00027397,5]
[405301614,1770970253373,-1087.42936172,0.00027586,3]
[405301615,1770970253383,-472.90898588,0.00027595,3]
[405301616,1770970253392,-403.62513548,0.00027663,2]
[405301617,1770970253402,-154.0,0.0002791,14]
[405301618,1770970253414,-250.0,0.00027945,5]
[405301619,1770970253424,-1000.0,0.00028,120]
[405301620,1770970253434,-199.17,0.00028493,2]
[405301621,1770970253445,-353.14332951,0.00028493,5]
[405301622,1770970253455,-150.0,0.00028544,2]